bitfinex-derivatives/quotes_ETHF0:USTF0_20260115
["timestamp","ask_amount","ask_price","bid_price","bid_amount"]
[1768463926754,0.00450241,3330.5,3329.1,0.62773771]
[1768463927055,0.83681185,3330.4,3329.1,0.62773771]
[1768463927355,0.83681185,3330.3,3329.1,0.62773771]
[1768463927655,0.00450241,3330.5,3329.1,0.62773771]
[1768463927851,0.83681345,3330.4,3329.1,0.62773771]
[1768463928056,0.83681345,3330.3,3329.1,0.62773771]
[1768463928353,0.00450241,3330.5,3329.1,0.62773771]
[1768463928558,0.83679969,3330.4,3329.1,0.62773771]
[1768463928742,0.83679969,3330.3,3329.1,0.62773771]
[1768463928946,0.00450241,3330.5,3329.1,0.62773771]
[1768463929242,0.83679974,3330.4,3329.1,0.62773771]
[1768463929443,0.00450241,3330.5,3329.2,0.62773771]
[1768463929444,0.83679974,3330.3,3329.2,0.62773771]
[1768463929642,1.20342676,3330.3,3328.8,0.62773771]
[1768463929954,0.83684671,3330.2,3329.0,0.62773771]
[1768463930146,1.20342676,3330.3,3329.0,0.62773771]
[1768463930346,0.83684564,3330.2,3329.2,0.62773771]
[1768463930542,1.20792917,3330.5,3329.2,0.62773771]
[1768463930754,0.83685522,3330.4,3329.2,0.62773771]
[1768463930957,0.83685522,3330.3,3329.2,0.62773771]
[1768463931157,0.83685522,3330.2,3329.2,0.62773771]
[1768463931351,0.00450241,3330.5,3329.4,0.63263604]
[1768463931546,0.83685642,3330.4,3329.4,0.63263604]
[1768463931750,0.83685642,3330.3,3329.4,0.63263604]
[1768463931949,0.00450241,3330.5,3329.4,0.63263604]
[1768463932152,0.83685613,3330.4,3329.4,0.63263604]
[1768463932353,0.83685613,3330.3,3329.4,0.63263604]
[1768463932554,0.00450241,3330.5,3329.4,0.63263604]
[1768463932861,0.83688023,3330.4,3329.4,0.63263604]
[1768463933159,0.83688023,3330.3,3329.4,0.63263604]
[1768463933462,0.00450241,3330.5,3329.4,0.63263604]
[1768463933662,0.83693181,3330.4,3329.5,1.8360628]
[1768463933861,0.00450241,3330.5,3329.5,1.8360628]
[1768463934061,0.83688756,3330.4,3329.5,1.8360628]
[1768463934263,0.00450241,3330.5,3329.5,1.8360628]
[1768463934462,0.83697473,3330.4,3329.5,1.8360628]
[1768463934762,0.00450241,3330.5,3329.5,1.8360628]
[1768463934959,0.83697474,3330.4,3329.6,0.63263604]
[1768463935161,0.00450241,3330.5,3329.6,0.63263604]
[1768463935461,0.83705653,3330.4,3329.6,0.63263604]
[1768463935663,0.00450241,3330.5,3329.6,0.63263604]
[1768463935859,0.83705605,3330.4,3329.6,0.63263604]
[1768463936053,0.00450241,3330.5,3329.6,0.63263604]
[1768463936254,0.83705578,3330.4,3329.6,0.63263604]
[1768463936459,0.00450241,3330.5,3329.9,1.20342676]
[1768463936663,0.0036231,3330.8,3329.9,1.8390016]
[1768463936855,0.0036231,3330.8,3330.1,1.20342676]
[1768463937051,0.15012,3331.3,3330.1,1.20342676]
[1768463937254,0.83706238,3331.2,3330.1,1.8360628]
[1768463937566,0.83706238,3331.1,3330.1,1.8360628]
[1768463937766,0.84156479,3331.0,3330.3,0.00450241]
[1768463937964,0.83706238,3330.9,3330.3,0.00450241]
[1768463938261,0.00803187,3331.0,3330.3,0.00450241]
[1768463939565,1.21145863,3331.0,3330.3,0.00450241]
[1768463941166,1.20342676,3330.8,3329.9,0.0029388]
[1768463941364,1.20342676,3330.5,3329.9,0.0029388]
[1768463941565,1.20342676,3330.5,3329.3,0.63263604]
[1768463941765,1.20342676,3330.8,3329.3,0.63263604]
[1768463942072,0.83631591,3330.7,3329.3,0.63263604]
[1768463942262,0.83633576,3330.6,3329.7,0.00450241]
[1768463942565,1.20342676,3330.8,3329.7,0.00769555]
[1768463942766,0.83632452,3330.7,3329.7,0.00769555]
[1768463942966,0.83632452,3330.6,3329.7,0.00769555]
[1768463943169,1.20342676,3330.9,3329.7,0.00769555]
[1768463943367,0.83631368,3330.8,3329.7,0.00769555]
[1768463943577,0.83631368,3330.7,3329.7,0.00769555]
[1768463943770,0.83631368,3330.6,3329.7,0.00769555]
[1768463944071,1.20342676,3330.9,3329.7,0.00769555]
[1768463944272,0.83631326,3330.8,3329.7,0.00769555]
[1768463944458,0.83631326,3330.7,3329.7,0.00769555]
[1768463944661,0.83631326,3330.6,3329.7,0.00769555]
[1768463944867,0.00803187,3331.0,3329.7,1.84375835]
[1768463945166,0.83627969,3330.9,3329.7,1.84375835]
[1768463945373,0.83627969,3330.8,3329.7,1.84375835]
[1768463945569,0.83627969,3330.7,3329.7,1.84375835]
[1768463945775,0.00803187,3331.0,3329.7,1.84375835]
[1768463945969,0.83625562,3330.9,3329.7,1.84375835]
[1768463946164,0.83625562,3330.8,3329.7,1.84375835]
[1768463946367,0.83625562,3330.7,3329.7,1.84375835]
[1768463946561,0.00803187,3331.0,3329.7,1.84375835]
[1768463946562,0.00803187,3331.0,3330.1,1.20342676]
[1768463946768,0.83623758,3330.9,3330.1,1.8360628]
[1768463946967,0.00803187,3331.0,3330.1,1.8360628]
[1768463947177,0.83618858,3330.9,3330.1,1.8360628]
[1768463947471,0.00803187,3331.0,3330.1,0.63263604]
[1768463949370,0.00803187,3331.0,3330.3,0.63263604]
[1768463950773,0.00803187,3331.0,3329.9,1.8360628]
[1768463951167,0.00803187,3331.0,3330.0,0.63263604]
[1768463953277,0.00803187,3331.0,3330.2,0.63263604]
[1768463953577,0.00803187,3331.0,3330.4,0.63263604]
[1768463957577,0.00803187,3331.0,3330.1,1.8360628]
[1768463959381,0.00803187,3331.0,3330.1,0.63263604]
[1768463961372,0.00803187,3331.0,3330.1,1.8360628]
[1768463962882,0.00803187,3331.0,3330.1,0.63263604]
[1768463964789,0.00803187,3331.0,3330.1,1.8360628]
[1768463965173,0.00803187,3331.0,3330.2,0.62531616]
[1768463967975,0.1501,3331.7,3330.5,0.62531616]
[1768463968176,0.83660129,3331.6,3330.5,0.62531616]
[1768463968376,0.83660129,3331.5,3330.5,0.62531616]
[1768463968571,0.83660129,3331.4,3330.5,0.62531616]
[1768463968877,0.83660129,3331.3,3330.5,0.62531616]
[1768463969085,0.00450241,3331.3,3330.5,0.62531616]
[1768463969980,0.00358573,3331.4,3330.5,0.62531616]
[1768463970980,0.00450241,3331.3,3330.5,0.62531616]
[1768463980601,0.00450241,3331.3,3330.1,1.82874292]
[1768463980801,0.00450241,3331.3,3330.2,0.62531616]
[1768463985602,0.00450241,3331.3,3330.2,1.82874292]
[1768463985801,0.00450241,3331.3,3330.3,0.62531616]
[1768463985997,0.00450241,3331.3,3330.6,1.20342676]
[1768463986203,0.00450241,3331.3,3330.5,0.62531616]
[1768463989620,2.1098411,3332.3,3330.6,0.62531616]
[1768463989916,0.83862595,3332.2,3330.6,0.62531616]
[1768463990125,0.83862595,3332.1,3330.6,0.62531616]
[1768463990419,0.83862595,3332.0,3330.6,0.62531616]
[1768463990605,0.83862595,3331.9,3330.6,0.62531616]
[1768463990803,0.00297888,3331.6,3330.6,0.62531616]
[1768463993221,0.00370373,3332.0,3331.0,0.62686114]
[1768464004730,6.405,3332.9,3331.0,0.62686114]
[1768464004934,0.83695402,3332.8,3331.6,0.00450241]
[1768464005131,0.83695402,3332.7,3331.6,0.00450241]
[1768464005332,0.83695402,3332.6,3331.6,0.00450241]
[1768464005627,0.83686633,3332.5,3331.6,0.00450241]
[1768464005822,0.83692221,3332.4,3331.6,0.00450241]
[1768464006032,0.00316651,3332.6,3331.6,0.00450241]
[1768464006224,0.83692276,3332.5,3331.6,0.00450241]
[1768464006426,0.83692276,3332.4,3331.6,0.00450241]
[1768464006626,0.00316651,3332.6,3331.6,0.00450241]
[1768464006830,0.83690803,3332.5,3331.6,0.00450241]
[1768464007031,0.83690803,3332.4,3331.6,0.00450241]
[1768464007329,0.00316651,3332.6,3331.6,0.00450241]
[1768464007524,0.83693089,3332.5,3331.6,0.00450241]
[1768464007721,0.83693089,3332.4,3331.6,0.00450241]
[1768464007928,0.00316651,3332.6,3331.6,0.00450241]
[1768464008128,0.83693089,3332.5,3331.6,0.00450241]
[1768464008327,0.83693089,3332.4,3331.6,0.00450241]
[1768464008536,0.83693089,3332.3,3331.0,0.62686114]
[1768464008835,0.83693089,3332.2,3331.0,0.62686114]
[1768464009022,0.00316651,3332.6,3331.0,0.62686114]
[1768464009223,0.83697795,3332.5,3331.0,0.62686114]
[1768464009536,0.00450241,3332.1,3331.4,0.00450241]
[1768464012628,0.00450241,3332.1,3330.6,0.62686114]
[1768464012828,0.83738107,3332.0,3330.6,0.62686114]
[1768464013131,0.00450241,3332.1,3330.6,0.62686114]
[1768464013331,0.83750158,3332.0,3330.6,0.62686114]
[1768464013636,0.00450241,3332.1,3331.0,0.00450241]
[1768464013841,0.75413268,3331.3,3329.9,0.62025422]
[1768464014139,0.75413268,3331.3,3328.6,3.7731005]
[1768464014140,0.60401268,3331.1,3328.6,3.7731005]
[1768464014323,0.8375365,3331.0,3328.5,2.69507178]
[1768464014522,40.8,3331.2,3328.6,0.15024]
[1768464014726,0.83683206,3331.1,3328.9,2.69507178]
[1768464014930,3.00601268,3331.6,3330.1,0.00450241]
[1768464015241,1.44084566,3331.5,3330.1,0.00450241]
[1768464015434,0.83683298,3331.4,3330.1,0.00450241]
[1768464015634,0.83683298,3331.3,3330.1,0.00450241]
[1768464015834,0.83683298,3331.2,3330.1,0.00450241]
[1768464016136,0.83683298,3331.1,3330.1,0.63136355]
[1768464016336,0.60401268,3332.0,3330.1,0.63136355]
[1768464016532,0.83630976,3331.8,3330.1,0.63136355]
[1768464016736,0.83630976,3331.7,3330.1,0.63136355]
[1768464016941,0.83630976,3331.6,3330.1,0.63136355]
[1768464017130,40.8,3332.0,3330.1,0.63136355]
[1768464017333,0.83620982,3331.8,3330.1,0.63136355]
[1768464017534,0.83620982,3331.7,3330.1,0.63136355]
[1768464017742,0.83620982,3331.6,3330.1,0.63136355]
[1768464018036,0.60851509,3332.1,3330.1,0.63136355]
[1768464018230,0.83617917,3331.8,3330.1,0.63136355]
[1768464018432,0.83617917,3331.7,3330.1,0.63136355]
[1768464018633,0.83617917,3331.6,3330.1,0.63136355]
[1768464018931,0.60851509,3332.1,3330.1,0.63136355]
[1768464019131,0.83612249,3331.8,3330.1,0.63136355]
[1768464019431,0.83612249,3331.7,3330.1,0.63136355]
[1768464019631,0.83612249,3331.6,3330.1,0.63136355]
[1768464019832,0.60851509,3332.1,3330.1,0.63136355]
[1768464020033,0.83606592,3331.8,3330.1,0.63136355]
[1768464020228,0.83606592,3331.7,3330.1,0.63136355]
[1768464020434,2.40650241,3332.1,3330.1,0.63136355]
[1768464020726,0.83595006,3332.0,3330.1,0.63136355]
[1768464020932,0.83595006,3331.9,3330.1,0.63136355]
[1768464021145,0.83595006,3331.8,3330.1,0.63136355]
[1768464021325,0.83595006,3331.7,3330.1,0.63136355]
[1768464021530,0.00450241,3332.1,3330.1,0.63136355]
[1768464021737,0.83588527,3332.0,3330.1,0.63136355]
[1768464022040,0.00450241,3332.1,3330.1,0.63136355]
[1768464024146,0.6349134,3332.0,3330.1,0.63136355]
[1768464024444,0.83590636,3331.9,3330.1,0.63136355]
[1768464024636,0.83590636,3331.8,3330.1,0.63136355]
[1768464024836,0.83590636,3331.7,3330.1,0.63136355]
[1768464025043,0.83590636,3331.6,3330.1,0.63136355]
[1768464025245,0.83590636,3331.5,3330.1,0.63136355]
[1768464025534,0.6349134,3332.0,3330.1,0.63136355]
[1768464025730,0.83591559,3331.9,3330.1,0.63136355]
[1768464025940,0.83591559,3331.8,3330.1,0.63136355]
[1768464026140,0.83591559,3331.7,3330.1,0.63136355]
[1768464026340,0.83591559,3331.6,3330.1,0.63136355]
[1768464026538,0.83591559,3331.5,3330.1,0.63136355]
[1768464026847,0.6349134,3332.0,3330.1,0.63136355]
[1768464027032,0.8358782,3331.9,3330.1,0.63136355]
[1768464027344,0.8358782,3331.8,3330.1,0.63136355]
[1768464027543,0.8358782,3331.7,3330.1,0.63136355]
[1768464027740,0.8358782,3331.6,3330.1,0.63136355]
[1768464027942,0.8358782,3331.5,3330.1,0.63136355]
[1768464028143,0.8358782,3331.4,3330.1,0.63136355]
[1768464028344,0.6349134,3332.0,3330.1,0.63136355]
[1768464028545,0.83581181,3331.9,3330.1,0.63136355]
[1768464028735,0.83581181,3331.8,3330.1,0.63136355]
[1768464029039,0.83581181,3331.7,3330.1,0.63136355]
[1768464029239,0.83581181,3331.6,3330.1,0.63136355]
[1768464029447,0.83581181,3331.5,3330.1,0.63136355]
[1768464029648,0.83581181,3331.4,3330.1,0.63136355]
[1768464029951,0.6349134,3332.0,3330.1,0.63136355]
[1768464030246,0.83580387,3331.9,3330.1,0.63136355]
[1768464030440,0.83580387,3331.8,3330.1,0.63136355]
[1768464030748,0.00450241,3332.1,3330.1,0.63136355]
[1768464034552,0.00450241,3332.1,3330.1,0.78153355]
[1768464037255,0.00450241,3332.1,3330.2,0.15017]
[1768464037457,0.00450241,3332.1,3330.3,0.5925069]
[1768464046975,0.00450241,3332.1,3330.5,0.5925069]
[1768464054766,0.63646316,3332.1,3330.5,0.5925069]
[1768464054972,0.8446468,3332.0,3330.5,0.5925069]
[1768464055174,0.8446468,3331.9,3330.5,0.5925069]
[1768464055375,0.8446468,3331.8,3330.1,3.63665143]
[1768464055680,0.8446468,3331.7,3330.1,3.63665143]
[1768464055883,0.8446468,3331.6,3330.1,3.63665143]
[1768464056078,0.8446468,3331.5,3330.1,3.63665143]
[1768464056379,0.63196075,3332.0,3330.1,3.63665143]
[1768464056565,1.47702674,3331.9,3330.1,3.63665143]
[1768464056762,0.84506599,3331.8,3330.1,0.63365143]
[1768464060783,1.47702674,3331.8,3330.1,0.63365143]
[1768464060971,0.84506599,3331.7,3330.1,0.63365143]
[1768464061381,1.47702674,3331.7,3330.1,0.63365143]
[1768464061585,0.63196075,3331.5,3330.1,0.00450241]
[1768464061771,0.84506599,3331.4,3330.1,0.00450241]
[1768464062782,1.47702674,3331.4,3330.1,0.00450241]
[1768464062974,0.84506599,3331.3,3330.1,0.00450241]
[1768464069193,0.15009,3332.0,3330.2,0.62914902]
[1768464069378,0.84325187,3331.9,3330.2,0.62914902]
[1768464069581,0.84325187,3331.8,3330.2,0.62914902]
[1768464069784,0.15009,3332.0,3330.2,0.62914902]
[1768464069980,0.00450241,3332.1,3330.2,0.62914902]
[1768464069981,0.84317082,3331.9,3330.2,0.62914902]
[1768464070184,0.78205075,3332.0,3330.1,0.00450241]
[1768464070379,0.63196075,3331.8,3330.1,0.63365143]
[1768464070574,0.84322822,3331.7,3330.1,0.63365143]
[1768464076893,1.47518897,3331.7,3330.1,0.63365143]
[1768464077092,0.84322822,3331.6,3330.1,0.63365143]
[1768464077292,0.84322822,3331.5,3330.1,0.63365143]
[1768464077590,0.84322822,3331.4,3330.1,0.63365143]
[1768464077793,0.84322822,3331.3,3330.1,0.63365143]
[1768464077988,0.15011,3331.4,3330.1,0.00450241]
[1768464078196,0.84392307,3331.3,3330.1,0.00450241]
[1768464078391,0.84392307,3331.2,3330.1,0.00450241]
[1768464078585,0.84392307,3331.1,3330.1,0.00450241]
[1768464078786,0.84392307,3331.0,3330.1,0.00450241]
[1768464079093,0.15011,3331.4,3330.1,0.00450241]
[1768464079293,0.84415601,3331.3,3330.1,0.00450241]
[1768464079492,0.84415601,3331.2,3330.1,0.00450241]
[1768464079689,0.84415601,3331.1,3330.1,0.00450241]
[1768464079896,0.84415601,3331.0,3330.1,0.00450241]
[1768464080101,0.84415601,3330.9,3330.1,0.00450241]
[1768464080294,0.84415601,3330.8,3329.7,0.00319314]
[1768464080490,0.15011,3331.4,3329.7,0.63234216]
[1768464080693,0.84459855,3331.3,3329.7,0.63234216]
[1768464080893,0.84459855,3331.2,3329.7,0.63234216]
[1768464081087,0.84459855,3331.1,3329.7,0.63234216]
[1768464081288,0.84459855,3331.0,3330.1,0.00450241]
[1768464081494,0.84459855,3330.9,3330.1,0.00450241]
[1768464081689,0.84459855,3330.8,3330.1,0.00450241]
[1768464081897,0.15011,3331.4,3330.1,0.59775813]
[1768464082100,0.84477477,3331.3,3330.1,0.59775813]
[1768464082297,0.84477477,3331.2,3330.1,0.59775813]
[1768464082496,0.15011,3331.4,3330.1,0.59775813]
[1768464082497,0.84477477,3331.1,3330.1,0.59775813]
[1768464082697,0.84477477,3331.0,3330.1,0.59775813]
[1768464083008,0.84477477,3330.9,3330.1,0.59775813]
[1768464083295,0.15011,3331.4,3330.1,0.59775813]
[1768464083498,0.84544647,3331.3,3330.1,0.59775813]
[1768464083699,0.84544647,3331.2,3330.1,0.59775813]
[1768464083897,0.84544647,3331.1,3330.1,0.59775813]
[1768464084096,0.84544647,3331.0,3330.1,0.59775813]
[1768464084295,0.84544647,3330.9,3330.1,0.59775813]
[1768464084600,0.84544647,3330.8,3330.1,0.59775813]
[1768464084804,0.1501,3331.7,3330.1,0.59775813]
[1768464085005,0.84593598,3331.6,3330.1,0.59775813]
[1768464085204,0.84593598,3331.5,3330.1,0.59775813]
[1768464085403,0.84593598,3331.4,3330.1,0.59775813]
[1768464085705,0.84593598,3331.3,3330.1,0.59775813]
[1768464086000,0.84593598,3331.2,3330.1,0.59775813]
[1768464086301,0.84593598,3331.1,3330.1,0.59775813]
[1768464086505,2.374,3331.6,3330.1,0.59775813]
[1768464086689,0.84623993,3331.5,3330.1,0.59775813]
[1768464086893,0.84623993,3331.4,3330.1,0.59775813]
[1768464087191,0.84623993,3331.3,3330.1,0.59775813]
[1768464087398,0.84623993,3331.2,3330.1,0.59775813]
[1768464087603,0.84623993,3331.1,3330.1,0.59775813]
[1768464087804,0.84623993,3331.0,3330.1,0.59775813]
[1768464088097,0.84623993,3330.9,3330.1,0.59775813]
[1768464088299,2.5241,3331.6,3330.1,0.59775813]
[1768464088606,0.84636524,3331.5,3330.1,0.00450241]
[1768464088800,0.84636524,3331.4,3330.1,0.00450241]
[1768464089099,0.84636524,3331.3,3330.1,0.00450241]
[1768464089303,0.84636524,3331.2,3330.1,0.00450241]
[1768464089502,0.84636524,3331.1,3330.1,0.00450241]
[1768464089695,0.84636524,3331.0,3330.1,0.00450241]
[1768464089891,0.84636524,3330.9,3330.1,0.00450241]
[1768464090095,3.13050119,3331.6,3330.1,0.00450241]
[1768464090296,0.84644804,3331.5,3330.1,0.00450241]
[1768464090499,0.84644804,3331.4,3330.1,0.00450241]
[1768464090699,0.84644804,3331.3,3330.1,0.00450241]
[1768464090897,0.75652119,3331.2,3330.1,0.00450241]
[1768464091202,0.84666206,3331.1,3329.7,0.00319314]
[1768464091407,3.21966206,3331.0,3329.7,0.56654765]
[1768464091607,0.84666206,3330.9,3329.7,0.56654765]
[1768464091907,0.84666206,3330.8,3329.7,0.56654765]
[1768464092107,2.372,3331.1,3329.7,0.56654765]
[1768464092108,0.84666206,3330.7,3329.7,0.56654765]
[1768464092307,0.84666206,3330.6,3329.7,0.56654765]
[1768464092509,2.372,3331.1,3329.7,0.56654765]
[1768464092809,0.84620745,3331.0,3329.7,0.56654765]
[1768464093105,2.372,3331.1,3329.7,0.56654765]
[1768464093106,0.84620745,3330.9,3329.7,0.56654765]
[1768464093305,0.84620745,3330.8,3329.7,0.56654765]
[1768464093506,2.372,3331.1,3329.7,0.56654765]
[1768464093507,0.84620745,3330.7,3329.7,0.56654765]
[1768464093711,0.84620745,3330.6,3329.7,0.56654765]
[1768464094006,2.372,3331.1,3329.7,0.56654765]
[1768464094211,0.84619214,3331.0,3329.7,0.56654765]
[1768464094506,0.84619214,3330.9,3329.7,0.56654765]
[1768464094808,0.84619214,3330.8,3329.7,0.56654765]
[1768464095009,0.84619214,3330.7,3329.7,0.56654765]
[1768464095208,0.84619214,3330.6,3329.7,0.56654765]
[1768464095406,2.37,3331.2,3329.7,0.56654765]
[1768464095711,2.37,3331.2,3329.7,0.00319314]
[1768464095712,1.60272768,3331.1,3329.7,0.00319314]
[1768464095913,0.84618649,3331.0,3329.7,0.00319314]
[1768464096113,0.84618649,3330.9,3329.7,0.00319314]
[1768464096311,0.84618649,3330.8,3329.7,0.00319314]
[1768464096513,0.84618649,3330.7,3329.7,0.00319314]
[1768464096815,0.84618649,3330.6,3329.7,0.00319314]
[1768464097015,0.84618649,3330.5,3329.7,0.00319314]
[1768464097216,0.8506889,3330.4,3329.7,0.00319314]
[1768464097417,0.84618649,3330.3,3329.7,0.00319314]
[1768464097617,0.00450241,3330.4,3329.3,0.56335451]
[1768464097918,0.84593619,3330.3,3329.3,0.56335451]
[1768464098211,0.00450241,3330.4,3329.3,0.56335451]
[1768464098516,0.00450241,3330.4,3329.5,0.00450241]
[1768464098517,0.84580569,3330.3,3329.5,0.00450241]
[1768464098713,0.84580569,3330.2,3329.3,0.00385147]
[1768464098910,0.00340574,3330.2,3329.3,0.00385147]
[1768464099616,0.84563276,3330.1,3329.3,0.00385147]
[1768464099815,0.84563276,3330.0,3328.9,0.56335451]
[1768464100016,0.00340574,3330.2,3328.9,0.56335451]
[1768464100218,0.84565206,3330.1,3328.9,0.56335451]
[1768464100518,0.84565206,3330.0,3328.9,0.56335451]
[1768464100814,0.00340574,3330.2,3328.9,0.56601574]
[1768464101018,0.84564419,3330.1,3328.9,0.56601574]
[1768464101219,0.84564419,3330.0,3328.9,0.56601574]
[1768464101419,0.00340574,3330.2,3328.9,0.56601574]
[1768464101619,0.84545564,3330.1,3328.9,0.56601574]
[1768464101814,0.84545564,3330.0,3328.9,0.56601574]
[1768464102014,0.00340574,3330.2,3328.9,0.56601574]
[1768464102215,0.8454557,3330.1,3328.9,0.00266123]
[1768464102416,0.8454557,3330.0,3328.9,0.00266123]
[1768464102611,0.8454557,3329.9,3328.9,0.00266123]
[1768464102917,0.00340574,3330.2,3328.9,0.00266123]
[1768464103120,0.84531507,3330.1,3328.9,0.00266123]
[1768464103317,0.00340574,3330.2,3328.9,0.00266123]
[1768464103318,0.84531507,3330.0,3328.9,0.00266123]
[1768464103619,0.84531507,3329.9,3328.9,0.00266123]
[1768464103819,0.84511204,3329.8,3328.9,0.00266123]
[1768464104024,0.00340574,3330.2,3328.9,0.00266123]
[1768464104215,0.84512673,3330.1,3328.9,0.00266123]
[1768464104415,0.84512673,3330.0,3328.9,0.00266123]
[1768464104720,0.84512673,3329.9,3328.9,0.00266123]
[1768464104919,0.84512673,3329.8,3328.9,0.00266123]
[1768464105122,0.00340574,3330.2,3328.9,0.00266123]
[1768464105322,0.84493813,3330.1,3328.9,0.00266123]
[1768464105522,0.84493813,3330.0,3328.9,0.00266123]
[1768464105723,0.84493813,3329.9,3328.9,0.00266123]
[1768464106020,0.84493813,3329.8,3328.9,0.00266123]
[1768464106227,0.00340574,3330.2,3328.5,0.56335451]
[1768464106419,0.84461902,3330.1,3328.5,0.56335451]
[1768464106620,0.84461902,3330.0,3328.5,0.56335451]
[1768464106819,0.84461902,3329.9,3328.5,0.56335451]
[1768464107126,0.84461902,3329.8,3328.5,0.56335451]
[1768464107329,2.36940574,3330.2,3328.5,0.56589473]
[1768464107529,0.84452282,3330.1,3328.5,0.56589473]
[1768464107718,0.84452282,3330.0,3328.5,0.56589473]
[1768464107918,0.84452282,3329.9,3328.5,0.56589473]
[1768464108117,0.84452282,3329.8,3328.5,0.56589473]
[1768464108318,2.36940574,3330.2,3328.5,0.56589473]
[1768464108518,0.8443888,3330.1,3328.5,0.56589473]
[1768464108725,0.8443888,3330.0,3328.5,0.56589473]
[1768464108925,0.8443888,3329.9,3328.5,0.56589473]
[1768464109122,0.8443888,3329.8,3328.5,0.56589473]
[1768464109317,2.36940574,3330.2,3328.5,0.56589473]
[1768464109625,0.84427956,3330.1,3328.5,0.56589473]
[1768464109811,0.84427956,3330.0,3328.5,0.56589473]
[1768464110018,0.84427956,3329.9,3328.5,0.56589473]
[1768464110224,2.36940574,3330.2,3328.5,0.56589473]
[1768464110432,0.84416871,3330.1,3328.5,0.56589473]
[1768464110729,0.84416871,3330.0,3328.5,0.56589473]
[1768464110914,0.84416871,3329.9,3328.5,0.56589473]
[1768464111123,2.36940574,3330.2,3328.5,0.56589473]
[1768464111323,0.84416865,3330.1,3328.5,0.56589473]
[1768464111528,0.84416865,3330.0,3328.5,0.56589473]
[1768464111728,0.84416865,3329.9,3328.5,0.56589473]
[1768464111929,2.36940574,3330.2,3328.5,0.56589473]
[1768464112130,0.8440887,3330.1,3328.5,0.56589473]
[1768464112330,0.8440887,3330.0,3328.5,0.56589473]
[1768464112526,0.8440887,3329.9,3328.5,0.56589473]
[1768464112722,2.36940574,3330.2,3328.5,0.56589473]
[1768464113030,0.84406704,3330.1,3328.5,0.56589473]
[1768464113229,0.84406704,3330.0,3328.5,0.56589473]
[1768464113429,0.84406704,3329.9,3328.5,0.56589473]
[1768464113631,2.36940574,3330.2,3328.5,0.56589473]
[1768464113821,0.84407077,3330.1,3328.5,0.56589473]
[1768464114020,0.84407077,3330.0,3328.5,0.56589473]
[1768464114222,0.84407077,3329.9,3328.5,0.56589473]
[1768464114422,2.36940574,3330.2,3328.5,0.56589473]
[1768464114616,0.55337882,3330.0,3328.5,0.00254022]
[1768464114823,0.55337882,3329.8,3327.7,0.57063696]
[1768464115122,1.39747745,3329.7,3327.7,0.57063696]
[1768464115324,0.84409863,3329.6,3327.7,0.57063696]
[1768464115523,0.99430863,3329.6,3327.7,0.57063696]
[1768464115723,0.84409863,3329.5,3327.7,0.57293061]
[1768464115931,0.84409863,3329.4,3327.7,0.57293061]
[1768464116222,0.84409863,3329.3,3327.7,0.57293061]
[1768464116432,0.84409863,3329.2,3327.7,0.57293061]
[1768464116635,2.17821,3329.6,3327.7,0.57293061]
[1768464116934,0.84393582,3329.5,3327.7,0.57293061]
[1768464117133,0.84393582,3329.4,3327.7,0.57293061]
[1768464117330,0.84393582,3329.3,3327.7,0.57293061]
[1768464117522,0.84393582,3329.2,3327.7,0.57293061]
[1768464117724,2.17821,3329.6,3327.7,0.57293061]
[1768464117930,0.84387127,3329.5,3327.7,0.57293061]
[1768464118131,0.84387127,3329.4,3327.7,0.57293061]
[1768464118330,0.84387127,3329.3,3327.7,0.57293061]
[1768464118526,0.84387127,3329.2,3327.7,0.57293061]
[1768464118729,0.84386504,3329.1,3327.7,0.57293061]
[1768464119034,0.00450241,3328.7,3327.7,0.57293061]
[1768464120217,0.00450241,3328.7,3327.7,0.00229365]
[1768464121329,0.84401995,3328.6,3327.7,0.00229365]
[1768464121533,0.84401995,3328.5,3327.7,0.00229365]
[1768464121729,0.84401995,3328.4,3327.7,0.00229365]
[1768464121930,0.00450241,3328.7,3327.7,0.00229365]
[1768464122133,0.84526944,3328.6,3327.7,0.00229365]
[1768464122434,0.84526944,3328.5,3327.7,0.00229365]
[1768464122729,0.00450241,3328.7,3327.7,0.00229365]
[1768464123033,0.84500597,3328.6,3327.7,0.00229365]
[1768464123229,0.84500597,3328.5,3327.7,0.00229365]
[1768464123422,0.00450241,3328.7,3327.7,0.00229365]
[1768464123624,0.84486989,3328.6,3327.7,0.00229365]
[1768464123834,0.00450241,3328.7,3327.7,0.00229365]
[1768464124133,0.00450241,3328.7,3327.7,0.57293061]
[1768464124735,0.00450241,3328.7,3327.7,0.00229365]
[1768464128742,0.00450241,3328.7,3327.7,0.57293061]
[1768464129730,3.006,3329.9,3327.8,0.57063696]
[1768464129932,0.84527849,3329.8,3327.8,0.57063696]
[1768464130139,0.84527849,3329.7,3327.8,0.57063696]
[1768464130337,0.84527849,3329.6,3327.8,0.57063696]
[1768464130625,0.84527849,3329.5,3327.8,0.57063696]
[1768464130935,3.006,3329.9,3327.8,0.57063696]
[1768464130936,0.00450241,3329.0,3327.8,0.57063696]
[1768464133343,0.00450241,3329.0,3327.7,0.00229365]
[1768464133638,0.84593048,3328.9,3327.7,0.00229365]
[1768464133829,0.00450241,3329.0,3327.7,0.00229365]
[1768464134034,0.84593416,3328.9,3327.7,0.00229365]
[1768464134229,0.84593416,3328.8,3328.0,0.00450241]
[1768464134439,0.00450241,3329.0,3328.0,0.00450241]
[1768464134640,1.44071212,3328.9,3328.0,0.00450241]
[1768464134841,0.54547441,3328.7,3327.7,0.00229365]
[1768464135043,0.84602607,3328.6,3327.7,0.00229365]
[1768464136046,0.84602607,3328.5,3327.7,0.00229365]
[1768464136235,40.80450241,3329.0,3327.7,0.00229365]
[1768464136440,0.54547441,3328.8,3327.7,0.00229365]
[1768464136641,0.84612632,3328.7,3327.7,0.00229365]
[1768464138046,1.39160073,3328.7,3327.7,0.00229365]
[1768464138245,0.84612632,3328.6,3327.7,0.00229365]
[1768464138745,0.84612632,3328.6,3327.0,0.59604732]
[1768464138746,1.39160073,3328.6,3327.0,0.59604732]
[1768464139045,0.84612632,3328.5,3327.0,0.59604732]
[1768464139739,0.84612632,3328.5,3327.0,0.59822428]
[1768464140848,0.84647965,3328.4,3327.0,0.59822428]
[1768464141050,0.54547441,3328.6,3327.0,0.59822428]
[1768464141248,0.84647965,3328.5,3327.0,0.59822428]
[1768464141448,0.84647965,3328.4,3327.0,0.59822428]
[1768464141649,0.54547441,3328.6,3327.0,0.59822428]
[1768464141849,0.84664805,3328.5,3327.0,0.59822428]
[1768464142049,0.84664805,3328.4,3327.0,0.59822428]
[1768464142347,0.84686227,3328.3,3327.0,0.59822428]
[1768464142548,0.54547441,3328.6,3327.0,0.59822428]
[1768464142749,0.84686227,3328.5,3327.0,0.59822428]
[1768464142949,0.84686227,3328.4,3327.0,0.59822428]
[1768464143150,0.84686227,3328.3,3327.0,0.59822428]
[1768464143338,0.84686227,3328.2,3327.0,0.59822428]
[1768464143543,0.84686227,3328.1,3327.0,0.59822428]
[1768464143750,0.57902399,3328.5,3327.0,0.00217696]
[1768464143946,1.42615796,3328.4,3327.0,0.00217696]
[1768464144151,1.42615796,3328.3,3327.0,0.00217696]